Cogmind - Beta 11 X9 *** ADVENTURER MODE // 2022.01.26 @ 01:24:56 Player: Sardaukar Result: Destroyed by S-27 Virus with Autogun Performance ------------- Evolutions (6) 3000 Regions Visited (15) 3000 Robots Destroyed (161) 805 Value Destroyed (5491) 5491 Prototype IDs (25) 500 Alien Tech Used (3) 600 Bonus (1558) 1558 TOTAL SCORE: 14954 Bonus ------- High Alert Combat Kills 792 Follower Combat Kills 275 Aligned with FarCom 300 Met Zhirov 300 Friendly Fire -109 Cogmind --------- Core Integrity 0/1150 Matter 244/300 Energy 100/100 System Corruption 3% Temperature Cool (0) Movement Core (50) Location -4/Factory Parts ------- > --- POWER (2) -------- (None) > --- PROPULSION (5) --- (None) > --- UTILITY (8) ------ (None) > --- WEAPON (4) ------- (None) > --- INVENTORY (5) ---- Micro Fission Core Advanced Coolant Injector Improved Terrain Scanner Component Analysis Suite Ripper Peak State ------------ > --- POWER ------------ Improved Deuterium Engine Micro Fission Core > --- PROPULSION ------- Flexi-carbon Leg Flexi-carbon Leg Advanced Myomer Leg Advanced Myomer Leg Advanced Myomer Leg > --- UTILITY ---------- Advanced Power Amplifier High-capacity Storage Unit Advanced Energy Well Makeshift Terrain Scan Processor 0b10 Decoder Chip [Generic] Targeting Computer Phase Shifter Improved Force Field > --- WEAPON ----------- HERF Cannon Matter Neutralizer Heavy Machine Gun Hardcell Cannon > --- INVENTORY -------- Light Nuclear Core Neutrino Core Improved Cooling System Advanced Coolant Injector Improved Matter Compressor Advanced Signal Interpreter Improved Terrain Scanner Improved Core Analyzer Recoil Nullifier Kinecellerator Improved Utility Shielding Component Analysis Suite System Backup Module Improved Field Recycling Unit Ripper [Rating: 115] Favorites ----------- Power Improved Deuterium Engine Engine Improved Deuterium Engine Power Core Neutrino Core Reactor Light Antimatter Reactor Propulsion Improved Treads Treads Improved Treads Leg Advanced Myomer Leg Wheel Wheel Hover Unit Cooled Airjet Utility High-capacity Storage Unit Device Improved Cooling System Storage High-capacity Storage Unit Processor Targeting Computer Hackware Advanced Hacking Suite Protection Hardened Light Armor Plating Weapon Autogun Energy Gun Advanced Beam Rifle Energy Cannon Matter Neutralizer Ballistic Gun Autogun Ballistic Cannon Improved Light Cannon Launcher Advanced EMP Blaster Slashing Weapon Ripper Build | -11 -10 -10 -10 -9 -8 -8 -8 -6 -6 -5 -5 -5 -5 -4 -4 ------- Run | Scr Mat Min Exi Min Mat Sto Rec Fac Ext Fac Upp Upp Zhi Pro Fac Slots Evolved 12 | . . . . . 4 . . 4 . 2 . . . . 2 Power 1 | . . . . . . . . 1 . . . . . . . Propulsion 3 | . . . . . 2 . . . . . . . . . 1 Utility 6 | . . . . . 2 . . 3 . . . . . . 1 Weapon 2 | . . . . . . . . . . 2 . . . . . Parts Attached 218 | 4 6 . 2 2 19 20 2 19 26 14 10 10 8 13 63 Power 14 | 1 . . . 1 . 3 . 2 3 . . 1 . . 3 Engine 7 | 1 . . . 1 . 2 . 1 2 . . . . . . Core 6 | . . . . . . 1 . 1 1 . . 1 . . 2 Reactor 1 | . . . . . . . . . . . . . . . 1 Propulsion 46 | 2 2 . . . 6 3 . 2 14 2 4 1 5 1 4 Treads 18 | . 2 . . . 6 2 . 1 4 1 1 . 1 . . Leg 19 | 2 . . . . . . . . 5 . 3 . 4 1 4 Wheel 7 | . . . . . . . . 1 5 . . 1 . . . Hover 2 | . . . . . . 1 . . . 1 . . . . . Flight . | . . . . . . . . . . . . . . . . Utility 87 | 1 2 . 2 . 5 7 2 7 4 5 4 4 3 5 36 Device 43 | . . . . . 1 2 1 3 2 2 1 2 1 2 26 Storage 9 | 1 1 . 1 . 1 . . . . 1 . . 1 . 3 Processor 10 | . . . 1 . 1 1 1 1 . 1 . . . 1 3 Hackware 1 | . . . . . . . . . . . . . . . 1 Protection 24 | . 1 . . . 2 4 . 3 2 1 3 2 1 2 3 Artifact . | . . . . . . . . . . . . . . . . Weapon 71 | . 2 . . 1 8 7 . 8 5 7 2 4 . 7 20 Energy Gun 14 | . . . . . 1 4 . 3 2 . 1 . . 2 1 Energy Cannon 7 | . . . . . . . . . 1 1 . . . . 5 Ballistic Gun 24 | . . . . . 5 2 . 2 1 1 1 3 . 5 4 Ballistic Cannon 9 | . 2 . . 1 . . . . . 3 . . . . 3 Launcher 8 | . . . . . 2 1 . 1 1 1 . . . . 2 Special Weapon . | . . . . . . . . . . . . . . . . Impact Weapon . | . . . . . . . . . . . . . . . . Slashing Weapon 9 | . . . . . . . . 2 . 1 . 1 . . 5 Piercing Weapon . | . . . . . . . . . . . . . . . . Special Melee Weapon . | . . . . . . . . . . . . . . . . Unidentified Prototypes 15 | . . . 1 . 1 3 . . 1 3 . 1 5 . . Parts Lost 46 | . . . . . 3 1 . 3 5 2 8 . . 4 20 Power 3 | . . . . . . . . . 2 . . . . . 1 Propulsion 17 | . . . . . . 1 . 3 2 2 3 . . 1 5 Utility 12 | . . . . . 2 . . . 1 . 2 . . 1 6 Weapon 14 | . . . . . 1 . . . . . 3 . . 2 8 Highest Loss Streak 8 | . . . . . 1 1 . 3 5 1 3 . . 4 8 Average Slot Usage (%) 96 | . 73 100 100 99 99 98 100 91 96 98 97 87 94 100 94 Engine 7 | . 14 14 14 14 9 9 9 10 5 5 5 5 5 5 3 Core 2 | . . . . . . . . 1 5 5 5 4 5 5 4 Treads 15 | . 10 28 28 28 36 35 36 18 4 3 5 5 3 . . Leg 7 | . 17 . . . . . . . 13 . 11 5 11 23 23 Wheel 1 | . . . . . . . . . 5 18 4 . 2 . . Device 6 | . . . . . 8 . 3 5 1 8 6 9 11 13 9 Storage 7 | . 14 14 14 14 9 9 9 6 6 5 5 5 7 5 5 Processor 17 | . . . 7 14 11 19 22 26 26 24 18 17 17 17 21 Protection 4 | . 6 14 6 . 6 5 . 6 11 1 8 6 1 3 1 Energy Gun 4 | . . . . . 3 9 9 5 4 9 9 5 5 5 1 Energy Cannon 1 | . . . . . . . . . . 1 4 . . . 6 Ballistic Gun 6 | . . . . . 8 7 9 5 4 3 . 13 11 15 6 Ballistic Cannon 5 | . 9 28 28 27 5 . . . . 5 3 . . . 3 Naked Turns 35 | . . . . . . . . . . . . . . . 35 Heaviest Build 111 | 10 34 34 53 58 66 62 59 70 74 88 95 87 84 85 111 Greatest Support 130 | 20 46 46 46 46 92 87 87 87 80 40 45 27 105 110 130 Greatest Overweight (x) 18 | . 1 . 1 1 . 18 . 6 6 2 5 8 8 . 1 Average Overweight (x) . | . . . . 1 . . . 1 1 1 2 4 3 . . Largest Inventory Capacity 20 | 8 15 15 20 20 20 20 20 20 20 20 20 20 20 20 20 Average Capacity 19 | 7 14 15 15 20 20 20 20 20 20 20 20 20 20 20 19 Most Carried 20 | 6 12 14 16 20 20 20 20 20 20 20 19 16 20 20 20 Average Carried 16 | 3 7 13 14 15 18 19 19 16 17 17 14 13 17 19 16 Final Capacity 20 | 8 15 15 20 20 20 20 20 20 20 20 20 20 20 20 5 Final Carried 20 | 6 12 14 15 19 18 20 20 16 20 20 13 16 19 18 5 Class Distribution -------------------- 39% | Mutant 19% | Scavenger-Skirmisher 11% | Scavenger-Assassin 7% | Scavenger-Gunner 6% | Skirmisher 4% | Scavenger-Mutant 3% | Scavenger-Tank Dominant Class ---------------- Mutant | -10/Materials Mutant | -10/Mines Mutant | -10/Exiles Mutant | -9/Mines Mutant | -8/Materials Mutant | -8/Storage Skirmisher | -8/Recycling Skirmisher | -6/Factory Scavenger-Skirmisher | -6/Extension Scavenger-Skirmisher | -5/Factory Scavenger-Mutant | -5/Upper Caves Scavenger-Assassin | -5/Upper Caves Scavenger-Assassin | -5/Zhirov Scavenger-Gunner | -4/Proximity Caves Scavenger-Skirmisher | -4/Factory Resources | -11 -10 -10 -10 -9 -8 -8 -8 -6 -6 -5 -5 -5 -5 -4 -4 ----------- Run | Scr Mat Min Exi Min Mat Sto Rec Fac Ext Fac Upp Upp Zhi Pro Fac Matter Collected 5154 | 147 . 126 197 202 987 380 136 238 308 514 201 158 80 395 1085 Remotely . | . . . . . . . . . . . . . . . . Salvage Created 6881 | . . 81 . 34 1755 543 405 404 477 405 750 156 331 402 1138 Parts 338 | . . 10 . 6 96 36 35 25 6 14 20 12 4 19 55 Haulers Intercepted 5 | . . . . . 4 . . . . 1 . . . . . Recyclers Shooed 10 | . . . . 1 5 1 . 1 1 . . . . . 1 Parts Field Recycled . | . . . . . . . . . . . . . . . . Retrieved Matter . | . . . . . . . . . . . . . . . . Parts Self-Destructed 31 | . . . . . . . . . . . 12 . 2 17 . Prevented 14 | . . . . . . . . . . . 6 7 . 1 . Kills | -11 -10 -10 -10 -9 -8 -8 -8 -6 -6 -5 -5 -5 -5 -4 -4 ------- Run | Scr Mat Min Exi Min Mat Sto Rec Fac Ext Fac Upp Upp Zhi Pro Fac Combat Hostiles Destroyed 114 | . . 6 . 1 28 6 14 7 5 4 13 3 . 5 22 Melee 1 | . . . . . . . . 1 . . . . . . . Guns 64 | . . . . . 18 5 14 4 4 1 5 3 . 5 5 Cannons 30 | . . 6 . 1 5 . . . . 1 5 . . . 12 AOE 14 | . . . . . 5 . . 2 . 1 3 . . . 3 Classes Destroyed 23 | . . 2 . 2 9 . 1 1 1 . . 1 . 2 4 Worker 10 | . . . . 1 6 1 . . . 2 . . . . . Builder 5 | . . . . . 2 . 1 1 . . . . . . 1 Tunneler 2 | . . . . 1 1 . . . . . . . . . . Hauler 5 | . . . . . 4 . . . . 1 . . . . . Recycler 12 | . . . . . 3 2 4 . 1 . . . . . 2 Minesweeper 1 | . . . . . . . . . . . . . . 1 . Mechanic 1 | . . . . . . . . . . . . . . . 1 Operator 2 | . . . . . 1 1 . . . . . . . . . Drone 14 | . . . . . . . 14 . . . . . . . . Watcher 9 | . . . . . 3 2 . . 1 1 . . . . 2 Swarmer 23 | . . 5 . . 8 . . . . . 5 3 . . 2 Cutter 3 | . . . . . . . . . . . . . . . 3 Grunt 30 | . . 1 . 1 9 . . 3 1 2 6 . . 2 5 Brawler 2 | . . . . . 1 . . 1 . . . . . . . Duelist 3 | . . . . . 1 . . . . . . . . 1 1 Protector 1 | . . . . . . . . . . . . . . 1 . Sentry 15 | . . . . . 7 5 . . 2 . . . . 1 . Hunter 11 | . . . . . 2 1 . 1 1 2 2 . . . 2 Programmer 9 | . . . . . . . . 2 . . . . . . 7 Behemoth 1 | . . . . . . . . . 1 . . . . . . Striker 1 | . . . . . . . . . . . . . . . 1 Executioner 1 | . . . . . . . . . . . . . . . 1 Decomposer 1 | . . . . . . . . . . . . 1 . . . Samaritan 3 | . . . . . . . . . . . . 2 . 1 . Best Kill Streak 10 | . . 3 . 1 6 2 10 3 3 5 5 3 . 3 4 Combat Bots Only 6 | . . 3 . 1 5 1 6 3 3 2 5 3 . 3 4 Max Kills in Single Turn 4 | . . 2 . 1 4 1 2 1 1 1 1 1 . 1 3 Gunslinging 1 | . . . . . 1 . . . . . . . . . . Exploded 3 | . . . . . 3 . . 1 . 1 1 . . . 3 Melee 1 | . . . . . . . . 1 . . . . . . . Uniques/NPCs Destroyed . | . . . . . . . . . . . . . . . . Combat | -11 -10 -10 -10 -9 -8 -8 -8 -6 -6 -5 -5 -5 -5 -4 -4 -------- Run | Scr Mat Min Exi Min Mat Sto Rec Fac Ext Fac Upp Upp Zhi Pro Fac Damage Taken 10134 | . . 75 . 38 1117 305 . 774 1086 359 1781 317 . 496 3786 Core 2042 | . . 7 . . 59 38 . 29 154 16 474 62 . 51 1152 Absorbed by Shields 962 | . . . . . 393 . . . 8 . . . . . 561 Core Remaining (%) 78 | 100 . . . 97 . . 82 . 78 . . . . 35 . Volleys Fired 412 | . . 7 . 11 126 41 28 16 35 16 26 13 . 33 60 Largest 4 | . . 2 . 2 2 2 2 2 2 4 4 3 . 4 4 Hottest 288 | . . 78 . 78 97 141 76 122 129 234 268 142 . 195 288 Shots Fired 951 | . . 14 . 22 252 71 54 31 66 50 86 31 . 105 169 Gun 647 | . . . . . 187 68 54 28 62 18 38 31 . 105 56 Cannon 277 | . . 14 . 22 58 . . . 2 28 41 . . . 112 Launcher 27 | . . . . . 7 3 . 3 2 4 7 . . . 1 Special . | . . . . . . . . . . . . . . . . Kinetic 568 | . . 14 . 22 208 42 26 12 12 16 21 12 . 81 102 Thermal 338 | . . . . . 37 26 28 16 52 30 58 19 . 24 48 Explosive 1 | . . . . . . . . . . . . . . . 1 Electromagnetic 44 | . . . . . 7 3 . 3 2 4 7 . . . 18 Robot Hit Streak 51 | . . 4 . 5 35 28 10 19 22 16 51 12 . 35 15 Robot Miss Streak 4 | . . 1 . 1 3 1 4 1 4 2 1 1 . 1 4 Penetration Max 1 | . . . . . 1 . . . . . . . . . 1 Secondary Targets 7 | . . . . . 2 . . . 1 . . 2 . 2 . Max Gunslinging Chain 1 | . . . . . 1 . . . 1 . . 1 . 1 . Shots Hit Robots 669 | . . 7 . 5 181 46 23 32 58 29 63 25 4 80 116 Core Hits 294 | . . 7 . 3 71 16 19 17 19 13 28 11 4 30 56 Critical Kills 4 | . . . . . . . . . . 1 . . . . 3 Critical Parts Destroyed 2 | . . . . . 1 . . . . . . 1 . . . Critical Strikes 35 | . . 1 . 1 6 1 2 7 4 2 3 1 . 1 6 Burn 17 | . . . . . 4 1 2 3 4 . 2 . . 1 . Meltdown 3 | . . . . . . . . . . 1 . . . . 2 Destroy 3 | . . . . . 1 . . . . . . 1 . . 1 Blast 8 | . . 1 . 1 1 . . . . 1 1 . . . 3 Sever 4 | . . . . . . . . 4 . . . . . . . Melee Attacks 32 | . . . . . . . . 11 . 2 . 1 4 . 14 Impact . | . . . . . . . . . . . . . . . . Slashing 32 | . . . . . . . . 11 . 2 . 1 4 . 14 Piercing . | . . . . . . . . . . . . . . . . Sneak Attacks 2 | . . . . . . . . . . 1 . . . . 1 Combat Hostiles . | . . . . . . . . . . . . . . . . Follow-up Attacks . | . . . . . . . . . . . . . . . . Damage Inflicted 18579 | . . 180 . 129 4535 967 538 984 1290 914 1758 507 490 1452 4835 Guns 9525 | . . . . . 2684 930 538 486 1206 204 559 507 . 1452 959 Cannons 5403 | . . 172 . 108 743 . . . 23 437 816 . . . 3104 Explosions 2460 | . . . . . 1081 37 . 126 61 184 383 . . . 588 Melee 1117 | . . . . . . . . 372 . 89 . . 490 . 166 Ramming 74 | . . 8 . 21 27 . . . . . . . . . 18 Kinetic 8204 | . . 172 . 108 2907 476 198 206 232 133 248 127 . 1127 2270 Thermal 7380 | . . . . . 1120 454 340 293 997 508 1127 380 . 325 1836 Explosive 64 | . . . . . 64 . . . . . . . . . . Electromagnetic 1740 | . . . . . 417 37 . 113 61 184 383 . . . 545 Impact . | . . . . . . . . . . . . . . . . Slashing 1117 | . . . . . . . . 372 . 89 . . 490 . 166 Piercing . | . . . . . . . . . . . . . . . . Highest Corruption 3 | . 1 1 1 1 1 1 1 1 1 . . . . . 3 Average Corruption 1 | . 1 1 1 1 1 1 1 1 1 . . . . . 2 Corruption Purged 5 | . . . . . . . . . . . . . . . 5 Effects 36 | . 2 . 2 6 1 8 3 1 4 . . . . . 9 Message Errors 14 | . 2 . 1 3 . 3 3 . . . . . . . 2 Matter Fused 2 | . . . . . . . . . . . . . . . 2 Heat Flow Errors 2 | . . . . . . . . . . . . . . . 2 Energy Discharges 10 | . . . . 1 1 3 . 1 2 . . . . . 2 Data Loss (minor) 8 | . . . 1 2 . 2 . . 2 . . . . . 1 Overload Shots . | . . . . . . . . . . . . . . . . Overflow Damage 707 | . . . . . 280 . . . . 2 22 . . . 403 Projectiles 215 | . . . . . 3 . . . . 2 22 . . . 188 Explosions 441 | . . . . . 277 . . . . . . . . . 164 Melee 51 | . . . . . . . . . . . . . . . 51 Knockbacks 32 | . . . . . 11 . . . . 1 6 . . . 14 Impact . | . . . . . . . . . . . . . . . . Kinetic 31 | . . . . . 10 . . . . 1 6 . . . 14 Secondary 1 | . . . . . 1 . . . . . . . . . . Self-Inflicted Damage 525 | . . . . . 174 36 . 34 6 9 92 . . . 174 Shots 18 | . . . . . 4 2 . 2 1 1 5 . . . 3 Rammed 13 | . . 2 . 5 6 . . . . . . . . . . Targets Rammed 16 | . . 2 . 6 6 . . . . . . . . . 2 Kicked 2 | . . . . . . . . . . . . . . . 2 Crushed 1 | . . . . 1 . . . . . . . . . . . Highest Temperature 716 | . . 42 . 54 126 180 40 168 134 182 716 52 . 33 547 Average Temperature 72 | . . 18 . 23 27 38 17 42 42 63 224 23 . 10 119 Received Heat Transfer 1649 | . . 39 . 6 440 72 . 318 204 36 322 . . 111 101 Effects 12 | . . . . . . . . . . . 10 . . . 2 Shutdowns 5 | . . . . . . . . . . . 4 . . . 1 Energy Bleed 2 | . . . . . . . . . . . 2 . . . . Short Circuit 1 | . . . . . . . . . . . 1 . . . . Damage (minor) 1 | . . . . . . . . . . . 1 . . . . Damage (major) 1 | . . . . . . . . . . . . . . . 1 Damage (core) 2 | . . . . . . . . . . . 2 . . . . Siege Activations . | . . . . . . . . . . . . . . . . Robots Corrupted 1 | . . . . . . . . . . . . . . . 1 Combat Hostiles 1 | . . . . . . . . . . . . . . . 1 Parts Fried 10 | . . . . . 1 . . 1 . 2 2 . . . 4 Impact Corruptions . | . . . . . . . . . . . . . . . . Robots Melted 5 | . . . . . . 1 . . 1 1 . . . . 2 Combat Hostiles 4 | . . . . . . 1 . . 1 1 . . . . 1 Parts Melted 18 | . . . . . 1 3 . 1 7 1 2 2 . 1 . Heat Transferred 11900 | . . . . . 1608 992 777 753 2109 833 2010 629 . 592 1597 Parts Sabotaged 3 | . . . . . . . . 3 . . . . . . . Parts Stolen . | . . . . . . . . . . . . . . . . Parts Stripped . | . . . . . . . . . . . . . . . . Power Chain Reactions 5 | . . . . . 1 1 . 2 . . 1 . . . . Missiles Intercepted . | . . . . . . . . . . . . . . . . Alert | -11 -10 -10 -10 -9 -8 -8 -8 -6 -6 -5 -5 -5 -5 -4 -4 ------- Run | Scr Mat Min Exi Min Mat Sto Rec Fac Ext Fac Upp Upp Zhi Pro Fac Peak Influence 1251 | . 47 160 . 56 1042 731 432 1251 822 514 . . . . 284 Initial 1054 | . . 15 . . 18 375 240 1054 528 347 . . . . . Average 372 | . 28 99 . 18 449 595 319 1122 627 381 . . . . 53 Maximum Alert Level 4 | . . . . . 3 3 2 4 3 2 . . . . 1 Low Security (%) 40 | 100 100 100 . 100 26 . . . . . . . . . 91 Level 1 14 | . . . . . 6 4 87 . . 77 . . . . 8 Level 2 31 | . . . . . 46 91 12 . 84 22 . . . . . Level 3 10 | . . . . . 20 4 . 55 15 . . . . . . Level 4 3 | . . . . . . . . 44 . . . . . . . Level 5 . | . . . . . . . . . . . . . . . . High Security . | . . . . . . . . . . . . . . . . Max Security . | . . . . . . . . . . . . . . . . Squads Dispatched 27 | . 2 . . . 5 3 . 5 3 2 . . . . 7 Investigation 6 | . 2 . . . . 1 . . 1 . . . . . 2 Extermination 6 | . . . . . . . . 2 . 1 . . . . 3 Reinforcement 9 | . . . . . 3 2 . 1 . 1 . . . . 2 Assault 5 | . . . . . 1 . . 2 2 . . . . . . Garrison 1 | . . . . . 1 . . . . . . . . . . Intercept . | . . . . . . . . . . . . . . . . Construction Impeded 1 | . . . . . 1 . . . . . . . . . . Haulers Reinforced 1 | . . . . . . . . . . 1 . . . . . Active Scanning Responses . | . . . . . . . . . . . . . . . . Cargo Convoy Interrupts 1 | . . . . . . . . . . . . . . . 1 Stealth | -11 -10 -10 -10 -9 -8 -8 -8 -6 -6 -5 -5 -5 -5 -4 -4 --------- Run | Scr Mat Min Exi Min Mat Sto Rec Fac Ext Fac Upp Upp Zhi Pro Fac Distress Signals 65 | . . . . 1 7 . . . 1 2 . . . 51 3 Communications Jammed . | . . . . . . . . . . . . . . . . Distress Signals . | . . . . . . . . . . . . . . . . Times Spotted 225 | . . 8 . 1 60 14 19 11 13 9 15 8 . 11 56 Peak Tracking Total 12 | . . 3 . 1 5 3 4 5 4 4 5 4 . 3 12 Tactical Retreats 30 | . . 1 . 1 7 3 . 1 . 1 1 4 . 3 8 Traps | -11 -10 -10 -10 -9 -8 -8 -8 -6 -6 -5 -5 -5 -5 -4 -4 ------- Run | Scr Mat Min Exi Min Mat Sto Rec Fac Ext Fac Upp Upp Zhi Pro Fac Traps Triggered 15 | . 1 . . 2 2 3 . . 4 1 . . . 1 1 Indirectly 6 | . . . . . 2 2 . . 2 . . . . . . Trap Hack Attempts . | . . . . . . . . . . . . . . . . Triggered . | . . . . . . . . . . . . . . . . Disarmed . | . . . . . . . . . . . . . . . . Reprogrammed . | . . . . . . . . . . . . . . . . Reused 1 | . . . . . . . . . . . . . . 1 . Traps Extracted . | . . . . . . . . . . . . . . . . Installed 2 | . . . . . . . . . . . . . . 2 . Triggered 3 | . . . . . 1 . . 1 . . . . . 1 . Machines | -11 -10 -10 -10 -9 -8 -8 -8 -6 -6 -5 -5 -5 -5 -4 -4 ---------- Run | Scr Mat Min Exi Min Mat Sto Rec Fac Ext Fac Upp Upp Zhi Pro Fac Machines Disabled 21 | . . . . . 4 4 2 . . . . 1 . . 10 Max in Single Turn 6 | . . . . . 2 1 1 . . . . 1 . . 6 Garrison Access 2 | . . . . . 1 1 . . . . . . . . . Machines Sabotaged . | . . . . . . . . . . . . . . . . Garrisons Compromised . | . . . . . . . . . . . . . . . . Overloaded Fab Kills . | . . . . . . . . . . . . . . . . Hacking | -11 -10 -10 -10 -9 -8 -8 -8 -6 -6 -5 -5 -5 -5 -4 -4 --------- Run | Scr Mat Min Exi Min Mat Sto Rec Fac Ext Fac Upp Upp Zhi Pro Fac Machines Accessed 55 | . 5 1 . 2 7 10 2 2 6 2 . 1 9 . 8 Terminals 36 | . 5 1 . 1 4 8 2 2 6 2 . . . . 5 Fabricators . | . . . . . . . . . . . . . . . . Repair Stations 3 | . . . . . 1 . . . . . . . . . 2 Recycling Units 1 | . . . . . . 1 . . . . . . . . . Scanalyzers 2 | . . . . . 1 . . . . . . . . . 1 Garrison Access 2 | . . . . . 1 1 . . . . . . . . . Total Hacks 182 | . 16 1 . 5 31 26 10 2 9 5 . 1 48 . 28 Successful 130 | . 11 . . 4 22 10 4 2 5 4 . 1 48 . 19 Failed 52 | . 5 1 . 1 9 16 6 . 4 1 . . . . 9 Catastrophic 2 | . . 1 . . . . 1 . . . . . . . . Database Lockouts . | . . . . . . . . . . . . . . . . Manual 42 | . 6 1 1 . 9 8 5 . . . . . . . 12 Terminals 100 | . 16 1 . 4 18 19 10 2 9 5 . . . . 16 Fabricators . | . . . . . . . . . . . . . . . . Repair Stations 8 | . . . . . 3 . . . . . . . . . 5 Recycling Units 2 | . . . . . . 2 . . . . . . . . . Scanalyzers 16 | . . . . . 9 . . . . . . . . . 7 Garrison Access 6 | . . . . . 1 5 . . . . . . . . . Terminal Hacks 99 | . 9 . . 4 9 7 4 2 5 4 . 1 48 . 6 Record 39 | . 1 . . . . . . . . . . 1 36 . 1 Part Schematic 4 | . . . . . . . . . . . . . 4 . . Robot Analysis 6 | . . . . . 2 . . . . . . . 4 . . Prototype ID Bank 5 | . 1 . . . . . . . . . . . 4 . . Open Door 12 | . . . . 1 . 5 . 1 5 . . . . . . Open DSF 2 | . . . . . . . . 1 . 1 . . . . . Level Access Points 3 | . . . . 1 . . 1 . . . . . . . 1 Branch Access Points 2 | . . . . . . 1 1 . . . . . . . . Terminal Index 2 | . . . . . 1 . . . . . . . . . 1 Unreport Threat 9 | . . . . . 1 1 2 . . 3 . . . . 2 Locate Traps 2 | . 1 . . . 1 . . . . . . . . . . Dispatch Records 2 | . 1 . . . 1 . . . . . . . . . . Patrol Status 1 | . . . . 1 . . . . . . . . . . . Transport Status 1 | . 1 . . . . . . . . . . . . . . Recall Investigation 1 | . 1 . . . . . . . . . . . . . . Hauler Manifests 2 | . . . . . 1 . . . . . . . . . 1 Registered Components 2 | . 1 . . . 1 . . . . . . . . . . Zone Layout 4 | . 2 . . 1 1 . . . . . . . . . . Fabricator Hacks . | . . . . . . . . . . . . . . . . Repair Station Hacks 4 | . . . . . 1 . . . . . . . . . 3 Scan Component 3 | . . . . . 1 . . . . . . . . . 2 Repair 1 | . . . . . . . . . . . . . . . 1 Recycling Unit Hacks 1 | . . . . . . 1 . . . . . . . . . Retrieve Components 1 | . . . . . . 1 . . . . . . . . . Scanalyzer 14 | . . . . . 9 . . . . . . . . . 5 Insert Component 5 | . . . . . 3 . . . . . . . . . 2 Analyze 9 | . . . . . 6 . . . . . . . . . 3 Garrison Access Hacks 2 | . . . . . 1 1 . . . . . . . . . Seal Access 2 | . . . . . 1 1 . . . . . . . . . Unauthorized Hacks 10 | . 2 . . . 2 1 . . . . . . . . 5 Terminals 10 | . 2 . . . 2 1 . . . . . . . . 5 Track 1 | . . . . . . . . . . . . . . . 1 Assimilate 1 | . . . . . . 1 . . . . . . . . . Botnet 7 | . 2 . . . 2 . . . . . . . . . 3 Detonate 1 | . . . . . . . . . . . . . . . 1 Fabricators . | . . . . . . . . . . . . . . . . Repair Stations . | . . . . . . . . . . . . . . . . Recycling Units . | . . . . . . . . . . . . . . . . Scanalyzers . | . . . . . . . . . . . . . . . . Garrison Access . | . . . . . . . . . . . . . . . . Data Cores Recovered 1 | . . . . . 1 . . . . . . . . . . Used . | . . . . . . . . . . . . . . . . Hacking Detections 33 | . 4 1 . . 6 6 2 1 4 2 . . . . 7 Full Trace Events 5 | . 1 . . . 2 . . . . . . . . . 2 Feedback Events 1 | . 1 . . . . . . . . . . . . . . Corruption 1 | . 1 . . . . . . . . . . . . . . Feedback Blocked . | . . . . . . . . . . . . . . . . Robot Schematics Acquired . | . . . . . . . . . . . . . . . . Robots Built . | . . . . . . . . . . . . . . . . Authchips . | . . . . . . . . . . . . . . . . Time . | . . . . . . . . . . . . . . . . Total Robot Build Rating . | . . . . . . . . . . . . . . . . Part Schematics Acquired 9 | . . . . . 3 . . . . . . . 4 . 2 Parts Built . | . . . . . . . . . . . . . . . . Authchips . | . . . . . . . . . . . . . . . . Time . | . . . . . . . . . . . . . . . . Total Part Build Rating . | . . . . . . . . . . . . . . . . Parts Repaired 1 | . . . . . . . . . . . . . . . 1 Time 25 | . . . . . . . . . . . . . . . 25 Parts Recycled . | . . . . . . . . . . . . . . . . Recycled Matter . | . . . . . . . . . . . . . . . . Retrieved Matter . | . . . . . . . . . . . . . . . . Retrieved Components 9 | . . . . . . 9 . . . . . . . . . Parts Scanalyzed 5 | . . . . . 3 . . . . . . . . . 2 Part Schematics Acquired 5 | . . . . . 3 . . . . . . . . . 2 Parts Damaged . | . . . . . . . . . . . . . . . . Bothacking | -11 -10 -10 -10 -9 -8 -8 -8 -6 -6 -5 -5 -5 -5 -4 -4 ------------ Run | Scr Mat Min Exi Min Mat Sto Rec Fac Ext Fac Upp Upp Zhi Pro Fac Used RIF Installer . | . . . . . . . . . . . . . . . . Robots Hacked . | . . . . . . . . . . . . . . . . Non-combat . | . . . . . . . . . . . . . . . . Combat . | . . . . . . . . . . . . . . . . Robot Hacks Applied . | . . . . . . . . . . . . . . . . Relay Couplers Released . | . . . . . . . . . . . . . . . . Fabnet Peak Effective % . | . . . . . . . . . . . . . . . . Robots Rewired 6 | . . . . . . . . . 6 . . . . . . Allies Hacked . | . . . . . . . . . . . . . . . . Hacks Repelled . | . . . . . . . . . . . . . . . . Allies | -11 -10 -10 -10 -9 -8 -8 -8 -6 -6 -5 -5 -5 -5 -4 -4 -------- Run | Scr Mat Min Exi Min Mat Sto Rec Fac Ext Fac Upp Upp Zhi Pro Fac Total Allies 11 | . . . . . . 1 . . 10 . . . . . . Largest Group 8 | . . . . . . 1 . . 8 . . . . . . Highest-Rated Group 232 | . . . . . . 10 . . 232 . . . . . . Highest-Rated Ally 40 | . . . . . . 10 . . 40 . . . . . . Total Orders 11 | . . . . . . 3 . 2 4 . . . . . 2 STAY 1 | . . . . . . . . . 1 . . . . . . ROAM 1 | . . . . . . 1 . . . . . . . . . GUARD 2 | . . . . . . . . . 2 . . . . . . AID 1 | . . . . . . . . . 1 . . . . . . EXPLORE 6 | . . . . . . 2 . 2 . . . . . . 2 Ally Attacks 61 | . . . . . . . . . 61 . . . . . . Total Damage 1317 | . . . . . . . . . 1317 . . . . . . Kills 12 | . . . . . . . . . 12 . . . . . . Allies Corrupted 2 | . . . . . . . . 1 1 . . . . . . Allies Melted . | . . . . . . . . . . . . . . . . Turrets Deployed 1 | . . . 1 . . . . . . . . . . . . Intel | -11 -10 -10 -10 -9 -8 -8 -8 -6 -6 -5 -5 -5 -5 -4 -4 ------- Run | Scr Mat Min Exi Min Mat Sto Rec Fac Ext Fac Upp Upp Zhi Pro Fac Robot Analysis Total 6 | . . . . . 2 . . . . . . . 4 . . Derelict Logs Recovered 5 | . . 1 . . . . . . . . . 1 . 3 . Drone Launches 8 | . . . . . . 2 . 2 . . . . . . 4 Drone Recoveries 3 | . . . . . . 1 . . . . . . . . 2 Decoded 0b10 Intel 50 | . . . . . . . . . . . . . . . 50 Traps 11 | . . . . . . . . . . . . . . . 11 Emergency Access 5 | . . . . . . . . . . . . . . . 5 Items 27 | . . . . . . . . . . . . . . . 27 Machines 4 | . . . . . . . . . . . . . . . 4 Patrols 3 | . . . . . . . . . . . . . . . 3 Exploration | -11 -10 -10 -10 -9 -8 -8 -8 -6 -6 -5 -5 -5 -5 -4 -4 ------------- Run | Scr Mat Min Exi Min Mat Sto Rec Fac Ext Fac Upp Upp Zhi Pro Fac Turns Passed 15045 | 71 351 313 443 1452 1870 1298 501 762 1092 897 780 1861 493 1226 1635 Spaces Moved 6636 | 53 188 178 258 421 778 584 258 241 433 486 329 460 292 759 918 Core 57 | 9 . . . . . 1 . . . . . . . . 47 Treads 3131 | . 70 178 258 421 778 583 258 183 45 . . 357 . . . Legs 2416 | 44 118 . . . . . . . 283 . 185 . 156 759 871 Wheels 1032 | . . . . . . . . 58 105 486 144 103 136 . . Hover . | . . . . . . . . . . . . . . . . Flight . | . . . . . . . . . . . . . . . . Fastest Speed 50 | 50 120 160 160 240 155 155 155 153 95 95 110 200 120 120 50 Average Speed 169 | 108 177 160 169 240 160 156 155 191 185 109 203 354 157 120 116 Slowest Speed 950 | 120 240 160 240 240 162 950 155 400 240 110 470 410 260 120 190 Overloaded Moves . | . . . . . . . . . . . . . . . . Propulsion Burnouts . | . . . . . . . . . . . . . . . . Robots Hopped . | . . . . . . . . . . . . . . . . Cave-ins Triggered 1 | . . . . . . . . . . . . . . . 1 Teleports 1 | . . . . . . . . . . . . . 1 . . Exploration Rate (%) 45 | 5 35 33 61 83 51 73 46 21 48 12 60 52 62 66 21 Regions Visited 15 Branch Regions 10 Pre-discovered Areas 5 | . . . . . . . . . . . . . 3 2 . Known Exits Taken 5 | . . 1 . 1 . 1 1 . . 1 . . . . . Unknown Exits Taken 10 | 1 1 . 1 . 1 . . 1 1 . 1 1 1 1 . Scrap Searched 7 | . . . . 2 . . . . . . 1 3 . 1 . Spaces Dug 25 | . . . . 4 . 2 . 2 . 1 . . . 3 13 Terrain Destroyed 199 | . . 1 . 5 55 5 2 4 . 4 30 . . 3 90 Melee 15 | . . . . . . . . 2 . 1 . . . . 12 Projectile 51 | . . 1 . 5 2 2 2 . . 3 13 . . 3 20 AOE 133 | . . . . . 53 3 . 2 . . 17 . . . 58 Terrain Rammed . | . . . . . . . . . . . . . . . . Walls Destroyed . | . . . . . . . . . . . . . . . . Machines Disabled . | . . . . . . . . . . . . . . . . Actions | -11 -10 -10 -10 -9 -8 -8 -8 -6 -6 -5 -5 -5 -5 -4 -4 --------- Run | Scr Mat Min Exi Min Mat Sto Rec Fac Ext Fac Upp Upp Zhi Pro Fac Total 9583 | 66 205 191 265 834 1146 900 310 492 655 809 382 664 316 1019 1329 Wait 2013 | . . 3 . 386 187 224 21 198 90 278 9 173 . 203 241 Move 6621 | 52 187 177 257 420 777 583 257 240 432 485 328 459 291 758 918 Hop . | . . . . . . . . . . . . . . . . Pick Up 95 | 10 8 2 2 6 15 11 . 1 7 5 3 6 3 5 11 Fast Attach 68 | . 5 . 1 1 2 10 1 3 14 6 1 2 9 1 12 Attach 66 | 4 1 . . . 6 3 . 12 4 4 7 3 . 4 18 Detach 22 | . . . 1 . 1 3 1 6 3 1 . . 2 . 4 Swap 87 | . . . 1 1 11 7 1 4 8 4 2 6 1 8 33 Drop 92 | . 4 . 3 3 15 18 1 1 9 8 4 1 6 3 16 Fire 412 | . . 7 . 11 126 41 28 16 35 16 26 13 . 33 60 Melee 32 | . . . . . . . . 11 . 2 . 1 4 . 14 Ram . | . . . . . . . . . . . . . . . . Kick 2 | . . . . . . . . . . . . . . . 2 Crush 14 | . . 2 . 6 6 . . . . . . . . . . Escape Stasis 10 | . . . . . . . . . 8 . . . . 2 . Rewire 47 | . . . . . . . . . 45 . 2 . . . . Trap 2 | . . . . . . . . . . . . . . 2 . Miscellaneous . | . . . . . . . . . . . . . . . . Route ------- -11/Scrapyard -10/Materials -10/Mines -10/Exiles -9/Mines (discovered 2 exits: *Mat x2) -8/Materials -8/Storage (discovered 2 exits: *Fac / *Rec) -8/Recycling -6/Factory -6/Extension -5/Factory -5/Upper Caves -5/Upper Caves -5/Zhirov -4/Proximity Caves -4/Factory (discovered 5 exits: Res x4 / [Arm]) History --------- Turn | Location | Event 15 | -11/Scrapyard | Discovered new exit (range 16) 72 | -11/Scrapyard | Entered Materials 242 | -10/Materials | Discovered new exit (range 16) 329 | -10/Materials | Build established: Mutant 423 | -10/Materials | Entered Mines 629 | -10/Mines | Identified exit to Exiles 729 | -10/Mines | Deemed a non-threat by the Exiles lab entrance 736 | -10/Mines | Entered Exiles 784 | -10/Exiles | Met 8R-AWN 807 | -10/Exiles | Met EX-HEX 856 | -10/Exiles | Met EX-BIN 876 | -10/Exiles | Aligned with FarCom system 877 | -10/Exiles | Given EX-Vault access code 914 | -10/Exiles | Opened EX-Vault 923 | -10/Exiles | Found Prototype Processor 923 | -10/Exiles | Identified 0b10 Alert Chip 936 | -10/Exiles | DAS Turret deployed 967 | -10/Exiles | Warned to stay clear of 0b10 Research branches 1010 | -10/Exiles | Met EX-DEC 1148 | -10/Exiles | Discovered new exit (range 14) 1179 | -10/Exiles | Left Exiles lab with 0b10 Alert Chip 1179 | -10/Exiles | Entered Mines 1185 | -9/Mines | Met a Derelict bent on vengeance 2521 | -9/Mines | Identified exit to Materials 2582 | -9/Mines | Met a Derelict who couldn't figure out how to use a Trap Extractor 2631 | -9/Mines | Entered Materials 2631 | -8/Materials | Evolved 4 slots: Propulsion x2, Utility x2 2915 | -8/Materials | Garrison activated, responded to threat 4231 | -8/Materials | First assault squad dispatched 4493 | -8/Materials | Discovered new exit (range 5) 4501 | -8/Materials | Entered Storage 5215 | -8/Storage | Discovered new exit (range 15) 5279 | -8/Storage | Identified exit to Factory 5466 | -8/Storage | Identified exit to Recycling 5792 | -8/Storage | Used back door to open Recycling access 5799 | -8/Storage | Entered Recycling 5817 | -8/Recycling | Spotter reported a threat 5831 | -8/Recycling | Spotter reported a threat 5857 | -8/Recycling | Spotter reported a threat 5884 | -8/Recycling | Identified exit to Factory 5997 | -8/Recycling | Spotter reported a threat 6007 | -8/Recycling | Spotter reported a threat 6013 | -8/Recycling | Spotter reported a threat 6014 | -8/Recycling | Spotter reported a threat 6041 | -8/Recycling | Spotter reported a threat 6085 | -8/Recycling | Spotter reported a threat 6086 | -8/Recycling | Spotter reported a threat 6125 | -8/Recycling | Spotter reported a threat 6155 | -8/Recycling | Build established: Skirmisher 6236 | -8/Recycling | Spotter reported a threat 6237 | -8/Recycling | Spotter reported a threat 6300 | -8/Recycling | Entered Factory 6300 | -6/Factory | Evolved 4 slots: Power x1, Utility x3 6304 | -6/Factory | Identified exit to DSF 6650 | -6/Factory | First assault squad dispatched 6688 | -6/Factory | Discovered new exit (range 9) 6831 | -6/Factory | Lost 3 parts (3n) 7062 | -6/Factory | Entered Extension 7131 | -6/Extension | Rescued a captive Derelict 7135 | -6/Extension | Rescued a captive Derelict 7275 | -6/Extension | Build established: Scavenger-Skirmisher 7527 | -6/Extension | Rescued a captive Derelict 7554 | -6/Extension | Rescued a captive Derelict 7788 | -6/Extension | Build established: Commander-Skirmisher 7968 | -6/Extension | Spotted B-75 Beast 7994 | -6/Extension | Allies destroyed B-75 Beast 7997 | -6/Extension | Spotted B-75 Beast 8015 | -6/Extension | Destroyed B-75 Beast 8112 | -6/Extension | First assault squad dispatched 8115 | -6/Extension | Lost 5 parts (2p2n1u) 8152 | -6/Extension | Discovered new exit (range 3) 8154 | -6/Extension | Entered Factory 8154 | -5/Factory | Evolved 2 slots: Weapon x2 8310 | -5/Factory | Build established: Scavenger-Skirmisher 8513 | -5/Factory | Identified exit to DSF 8869 | -5/Factory | Discovered new exit (range 7) 8895 | -5/Factory | Identified exit to Upper Caves 9051 | -5/Factory | Entered Upper Caves 9594 | -5/Upper Caves | Build established: Scavenger-Mutant 9777 | -5/Upper Caves | Spotted B-75 Beast 9792 | -5/Upper Caves | Discovered new exit (range 12) 9831 | -5/Upper Caves | Entered another Upper Caves area 9838 | -5/Upper Caves | Lost 3 parts (1n1u1w) 10203 | -5/Upper Caves | Build established: Scavenger-Tank 10512 | -5/Upper Caves | Build established: Scavenger-Skirmisher 10545 | -5/Upper Caves | Core integrity fell below 50% 10788 | -5/Upper Caves | Found Alien Artifact 10789 | -5/Upper Caves | Identified Dimensional Node Initializer 10789 | -5/Upper Caves | Initialized slip node 11064 | -5/Upper Caves | Build established: Scavenger-Assassin 11631 | -5/Upper Caves | Discovered new exit (range 17) 11670 | -5/Upper Caves | Learned 4 Factory zone layouts 11692 | -5/Upper Caves | Entered Zhirov 11692 | -5/Zhirov | Discovered new exit (range 3) 11728 | -5/Zhirov | Met Zhirov 11766 | -5/Zhirov | Learned location of Quarantine (-2) 11766 | -5/Zhirov | Learned location of Testing (-3) 11766 | -5/Zhirov | Learned location of Command (-1) 11802 | -5/Zhirov | Zhirov requested help retrieving the SGEMP Prototype 11839 | -5/Zhirov | Found Alien Artifact 11839 | -5/Zhirov | Identified Integrated Dissipator 11839 | -5/Zhirov | Installed Integrated Dissipator, increased core heat dissipation (+20) 11870 | -5/Zhirov | Found Alien Artifact 11870 | -5/Zhirov | Identified Transdimensional Reconstructor 11870 | -5/Zhirov | Warped through subspace 12185 | -5/Zhirov | Entered Proximity Caves 12685 | -4/Proximity Caves | Lost 4 parts (1n1u2w) 12840 | -4/Proximity Caves | Learned location of 1 exit from Research 12887 | -4/Proximity Caves | Build established: Scavenger-Gunner 12930 | -4/Proximity Caves | Spotted B-86 Titan 13267 | -4/Proximity Caves | Discovered new exit (range 19) 13411 | -4/Proximity Caves | Entered Factory 13411 | -4/Factory | Evolved 2 slots: Propulsion x1, Utility x1 13727 | -4/Factory | Build established: Scavenger-Skirmisher 13927 | -4/Factory | Repaired Hvy. Machine Gun 14056 | -4/Factory | Crushed by falling debris 14091 | -4/Factory | Discovered new exit (range 16) 14425 | -4/Factory | Identified exit to Research 14932 | -4/Factory | Spotted Executioner 14932 | -4/Factory | Spotted Striker 14933 | -4/Factory | Cargo convoy interrupted 14952 | -4/Factory | Destroyed Striker 14987 | -4/Factory | Lost 7 parts (1n3u3w) 15004 | -4/Factory | Core integrity fell below 50% 15009 | -4/Factory | Destroyed Executioner 15011 | -4/Factory | Released all parts (10) 15015 | -4/Factory | Spotted B-86 Titan 15019 | -4/Factory | Core integrity fell below 20% 15040 | -4/Factory | Lost 8 parts (1p2n1u4w) 15046 | -4/Factory | Destroyed by S-27 Virus with Autogun Last Messages --------------- 15011_ Released Mak. Terrain Scan Processor. 15011_ Released Imp. Core Analyzer. 15011_ Released Adv. Energy Well. 15011_ Released Imp. Matter Compressor. 15011_ Released Recoil Nullifier. 15011_ ALERT: Suspicious intruders detected, dispatching Cutter reinforcements to area. 15011_ H-77 Assassin IFF system glitched. 15011_ Slug penetrates Wall. 15012_ Slug penetrates Earth. 15014_ Slug penetrates H-77 Assassin. 15015_ Slug penetrates Wall. 15015_ Slug penetrates Earth. 15016_ K-01 Serf collects debris. 15017_ Penetrated by Slug. 15017_ Slug penetrates Wall. 15018_ Penetrated by Slug. 15018_ Slug penetrates Wall. 15018_ Penetrated by Slug. 15021_ T-07 Excavator is excavating. Map ----- +----------------------------------------------------+ | ?????????????????????????????????????????????????? | | ?????????????????????????????????????????????????? | | ?????????????????????????????????????????????????? | | ?????????????????????????????????????????????????? | | ?????????????????????????????????????????????????? | | ????] # #?# ???????????????????? | | ????? # #?# ???????????????????? | | ????] # """""" #?# ???????????????????? | | ??? # """""" #?# ???????????????????? | | " # """""" #?# ???????????????????? | | " # """""" #?# ???????????????????? | | # #?# ???????????????????? | | " ####+##+###?# ???????????????????? | | " [[ ## #???# ???????????????????? | | " [[ ## #???# ???????????????????? | | #### ##### ???????????????????? | | ##/#########?????????